{"text_format":"1","workbook":"xlsx","n_sheets":4,"sheets":["変更履歴","【設定シート】説明","【リソースグループシート】説明","【リソース料金シート】説明"],"not_rendered":{"charts":0,"images":30,"macros":1,"external_links":0,"defined_names":0,"comments":0,"pivot_tables":0},"unopened":[],"bounds":{"document_bytes":16777216,"sheet_cells":100000,"rows_first":2000,"rows_last":500,"rows_between":2000,"halvings":0,"cell_chars":16384,"cell_head_chars":4096},"cells_cut":0,"cells_raw":0,"read":"whole","date_system":"1900"}

{"sheet":"変更履歴","index":0,"n_rows":15,"n_cols":5,"rows_kept":15,"cut":false,"hidden":false,"merged":[[3,1,5,1],[3,2,5,2],[6,1,7,1],[6,2,7,2],[11,1,14,1],[11,2,14,2]]}
["<変更履歴>"]
[]
[null,"Ver","更新日","更新シート","更新内容"]
[null,1.2,"2021-03-09","ヒアリングシート説明(商品 )","以下の項目を追加\n・商品属性\n"]
[null,null,null,"ヒアリングシート説明(商品属性)","ヒアリングシート説明(商品属性)シートを追加\n"]
[null,null,null,"商品属性 ","商品属性シートを追加\n"]
[null,"1.1.1","2021-04-28","ヒアリングシート説明(商品)","以下の項目を追加\n・卸/小売\n・サプライヤ企業名"]
[null,null,null,null,"ヒアリングシートに合わせてバージョンを変更"]
[null,1.2,"2021-07-19",null,"設定補助シートの大幅な改修に合わせて新規に作成"]
[null,"1.2.1","2021-10-26",null,"【リソースグループシート】説明 を追加\n【リソース料金シート】説明を追加"]
[null,"1.2.1","2021-10-26","【設定シート】説明","以下の項目を追加\n・商品内でのリソースグループ表示名\n・商品内でのリソースグループキー情報\n・商品に含めるリソースグループ\n・料金分類\n・リソースグループ適用開始日\n・リソースグループ適用終了日\n・リソースグループ表示順\n・この機能の必須・任意\n・初期表示\n・複数の設定が可能\n・下限\n・上限\n・サービス提供後に項目の追加・削除可否"]
[null,"1.2.2","2022-07-25","全体","リンクボタン追加に伴い、マクロファイルへ変更"]
[null,null,null,"【設定シート】説明","設定補助シートへのリンクボタンを追加"]
[null,null,null,"【リソースグループシート】説明","設定補助シートへのリンクボタンを追加"]
[null,null,null,"【リソース料金シート】説明","設定補助シートへのリンクボタンを追加"]

{"sheet":"【設定シート】説明","index":1,"n_rows":687,"n_cols":4,"rows_kept":687,"cut":false,"hidden":false,"merged":[]}
["■設定補助シート"]
[]
[]
[]
[]
[]
[]
[]
[]
[]
[]
[]
[]
[]
[]
[]
[]
[]
[]
[]
[]
[]
[]
[]
[]
[]
[]
[]
[]
[]
[]
[]
[]
[]
[]
[]
[]
[]
[]
[]
[]
[]
[]
[]
[]
["■説明"]
["ヘッダー名（UIで表示されるモノは参考リンクあり）","概要","設定値","備考"]
["卸/小売","このヒアリングシートの商品が卸商品なのか、小売商品なのかを選択する","小売商品\n卸商品","卸商品の場合は、サプライヤ企業名も記入する"]
["サプライヤ企業名","卸商品の場合、サプライヤ企業名を記入する","指定なし","卸商品の場合のみ記入する"]
[{"$f":"HYPERLINK(\"#A\"&ROW($A$88),SUBSTITUTE($A84,\"■\",\"\"))","v":"商品名(請求書表示名)"},"商品を指すキー情報","半角英数字とハイフンとアンダーバー","例）「supplementaryProduct」\nテナント内で一意であること"]
[{"$f":"HYPERLINK(\"#A\"&ROW($A$88),SUBSTITUTE($A85,\"■\",\"\"))","v":"商品キー情報"},"UI上に表示と、請求書に記載する商品の名称","文字、数字、記号","例）「補足資料用商品」"]
["内部で使用する名称","UI上に表示される商品の名称","文字、数字、記号","例）「補足資料用商品(内部名称)」"]
["商品説明","UI上に表示される商品の説明","文字、数字、記号","例）「補足資料用のサンプル商品です」"]
["商品適用開始日","商品の適用開始日","yyyy-mm-dd","例）「2021-07-15」\n先の日付を入力するとその日までは適用されない"]
[{"$f":"HYPERLINK(\"#A\"&ROW($A$211),SUBSTITUTE($A211,\"■\",\"\"))","v":"割り当てチャネル"},"商品の販売ができるチャネル","チャネル名","例）「SALES」\n各商品最低でも1つは設定が必要\n複数設定可能"]
[{"$f":"HYPERLINK(\"#A\"&ROW($A$266),SUBSTITUTE($A266,\"■\",\"\"))","v":"製品カテゴリ"},"購入画面にて商品を絞り込むためのカテゴリ","カテゴリ名","例）「DEMO」\n購入商品選択画面にて、チェックボックスでカテゴリの絞込みができる\n複数設定可能\n事前にテナントにカテゴリを追加する必要あり"]
[{"$f":"HYPERLINK(\"#A\"&ROW($A$315),SUBSTITUTE($A315,\"■\",\"\"))","v":"大量注文"},"大量注文の可不可","可\n不可","「可」を選択した商品は、注文数の編集ボタンが表示される\n同じ内容の注文を一度に複数行う可能性のある商品は可能とする"]
[{"$f":"HYPERLINK(\"#A\"&ROW($A$366),SUBSTITUTE($A366,\"■\",\"\"))","v":"製品画像"},"購入商品選択画面にて表示される商品イメージの有無","あり\nなし","設定する画像については設定者に別添えをすること\n設定するファイルの名称は日本語使用不可"]
[{"$f":"HYPERLINK(\"#A\"&ROW($A$428),SUBSTITUTE($A428,\"■\",\"\"))","v":"契約条件"},"商品に添付するファイル","あり/なし","例）「あり」\n小売商品画面、オーダ画面からダウンロードが可能な添付ファイル\n設定するファイルについては設定者に別添えをすること\n設定するファイルの名称は日本語使用不可"]
[{"$f":"HYPERLINK(\"#A\"&ROW($A$490),SUBSTITUTE($A490,\"■\",\"\"))","v":"依存関係"},"依存関係の有無と仕様を記載","依存関係の仕様\nなし","例）「機器ありの場合に「補足資料サービスB」サービスを表示する」」"]
["無料期間有無","無料期間の有無と仕様を記載","無料期間の仕様\nなし","例）「初月無料」"]
["商品属性","商品属性の有無を記載","あり\nなし","例）「あり」\nありの場合は同シートの下部にある「■商品属性詳細」に内容を記載\n事前にテナントに商品属性を追加する必要あり"]
[{"$f":"HYPERLINK(\"#A\"&ROW($A$125),SUBSTITUTE($A124,\"■\",\"\"))","v":"サービスキー情報"},"商品に含めるサービスのキー情報","半角英数字とハイフンとアンダーバー","例）「supplementaryServiceA」\nサービスの設定補助シートの記入情報から転記すること"]
[{"$f":"HYPERLINK(\"#A\"&ROW($A$125),SUBSTITUTE($A125,\"■\",\"\"))","v":"サービス表示名"},"商品に含めるサービスに名称","文字、数字、記号","例）「補足資料用サービスA」\nサービスの設定補助シートの記入情報から転記すること"]
[{"$f":"HYPERLINK(\"#A\"&ROW($A$541),SUBSTITUTE($A538,\"■\",\"\"))","v":"商品属性キー情報"},"商品に追加する属性の名称","テナントに設定済みの商品属性から選択","例）「ターゲットID」\nテナントへの事前設定が必要"]
[{"$f":"HYPERLINK(\"#A\"&ROW($A$541),SUBSTITUTE($A539,\"■\",\"\"))","v":"設定値"},"商品に追加する属性の設定値","文字、数字、記号","例）「123456789」\nシステムに影響を与えることはないため文字の指定はなし"]
["商品属性適用開始日","商品に追加する属性の適用開始日","yyyy-mm-dd","例）「2021-07-15」\nデフォルトでは当日が設定される\n未来日付にすると商品属性の適用がその日まで保留される"]
["商品属性適用終了日","商品に追加する属性の適用終了日","yyyy-mm-dd","デフォルトでは空白に設定される"]
[{"$f":"HYPERLINK(\"#A\"&ROW($A$583),SUBSTITUTE($A578,\"■\",\"\"))","v":"商品内でのリソースグループ表示名"},"注文画面で表示されるリソースグループの名称","文字、数字、記号","例）「モバイル1台購入」\nリソースグループシートで設定したリソースグループ表示名とは別の、\n注文画面で表示する名称\nリソースグループシートで設定した表示名と同じでも可"]
[{"$f":"HYPERLINK(\"#A\"&ROW($A$583),SUBSTITUTE($A579,\"■\",\"\"))","v":"商品内でのリソースグループキー情報"},"商品内でのリソースグループキー情報","半角英数字とハイフンとアンダーバー","例）「mobileOneBuy」\nリソースグループシートで設定したリソースグループキー情報とは別の、\n商品内で使用するキー情報\nリソースグループシートで設定したキー情報と同じでも可\nテナント内で一意であること"]
["商品に含めるリソースグループ","商品に含めるリソースグループの表示名","文字、数字、記号","例）「補足資料用リソースグループA」\nリソースグループシートで設定したリソースグループ表示名を記入する"]
["料金分類","リソースグループに適用する料金分類のキー情報","半角英数字とハイフンとアンダーバー","例）「ONE_BUY」\nリソース料金シートで設定した料金分類キー情報を記入する"]
["リソースグループ適用開始日","リソースグループの適用開始日","yyyy-mm-dd","例）「2021-10-18」\n未入力の場合は商品を設定すると同時に適用される\n未来日付にすると商品属性の適用がその日まで保留される"]
["リソースグループ適用終了日","リソースグループの適用終了日","yyyy-mm-dd","例）「2030-12-31」\n未入力の場合は適用終了の予約はされない"]
[{"$f":"HYPERLINK(\"#A\"&ROW($A$636),SUBSTITUTE($A633,\"■\",\"\"))","v":"リソースグループ表示順"},"リソースグループの表示順","数字"]
[{"$f":"HYPERLINK(\"#A\"&ROW($A$636),SUBSTITUTE($A634,\"■\",\"\"))","v":"この機能の必須・任意"},"注文時のこの機能の必須・任意","必須\n任意","必須を選択した場合は注文時にこのリソースグループに含まれる\nリソースがカート内に必須になる\n必須を選択した場合は初期表示がありになる\n必須を選択したリソースグループのリソースがカートに含まれていない場合\nエラーメッセージが表示される"]
["初期表示","注文画面での初期表示","あり\nなし","ありを選択した場合は注文画面でカートに初期表示される\nリソースグループ内のどのリソースを初期表示するかは、\nリソースグループシートで設定が必要"]
[{"$f":"HYPERLINK(\"#A\"&ROW($A$687),SUBSTITUTE($A685,\"■\",\"\"))","v":"複数の設定が可能"},"カートへの複数追加の可否","可\n不可","可を選択した場合はこのリソースグループに含まれるリソースを、\nカートに複数追加することが可能になる"]
[{"$f":"HYPERLINK(\"#A\"&ROW($A$687),SUBSTITUTE($A686,\"■\",\"\"))","v":"下限"},"複数追加が可の場合の下限数","数字","注文時のこの機能の必須・任意が必須の場合の下限は、\n最低でも1以上になる"]
["上限","複数追加が可の場合の上限数","数字","未入力の場合は上限なしとなる"]
[{"$f":"HYPERLINK(\"#A\"&ROW($A$636),SUBSTITUTE($A636,\"■\",\"\"))","v":"サービス提供後に項目の追加・削除可否"},"商品有効化後のリソースグループの追加・削除の可否","可\n不可","可の特性は変更申込画面でリソースグループとリソースの横に、\n「追加ボタン(+マーク)」と「削除ボタン(ゴミ箱マーク)」が表示される"]
[]
[]
["■商品名(請求書表示名)"]
["■商品キー情報"]
["■内部で使用する名称"]
["■商品説明"]
["■商品適用開始日",{"$f":"HYPERLINK(\"#A\"&ROW($A$46),\"戻る\")","v":"戻る"}]
[]
[]
[]
[]
[]
[]
[]
[]
[]
[]
[]
[]
[]
[]
[]
[]
[]
[]
[]
[]
[]
[]
[]
[]
[]
[]
[]
[]
[]
[]
[]
[]
[]
[]
[]
["■サービスキー情報"]
["■サービス表示名",{"$f":"HYPERLINK(\"#A\"&ROW($A$46),\"戻る\")","v":"戻る"}]
[]
[]
[]
[]
[]
[]
[]
[]
[]
[]
[]
[]
[]
[]
[]
[]
[]
[]
[]
[]
[]
[]
[]
[]
[]
[]
[]
[]
[]
[]
[]
[]
[]
[]
[]
[]
[]
[]
[]
[]
[]
[]
[]
[]
[]
[]
[]
[]
[]
[]
[]
[]
[]
[]
[]
[]
[]
[]
[]
[]
[]
[]
[]
[]
[]
[]
[]
[]
[]
[]
[]
[]
[]
[]
[]
[]
[]
[]
[]
[]
[]
[]
[]
[]
[]
["■割り当てチャネル",{"$f":"HYPERLINK(\"#A\"&ROW($A$46),\"戻る\")","v":"戻る"}]
[]
[]
[]
[]
[]
[]
[]
[]
[]
[]
[]
[]
[]
[]
[]
[]
[]
[]
[]
[]
[]
[]
[]
[]
[]
[]
[]
[]
[]
[]
[]
[]
[]
[]
[]
[]
[]
[]
[]
[]
[]
[]
[]
[]
[]
[]
[]
[]
[]
[]
[]
[]
[]
[]
["■製品カテゴリ",{"$f":"HYPERLINK(\"#A\"&ROW($A$46),\"戻る\")","v":"戻る"}]
[]
[]
[]
[]
[]
[]
[]
[]
[]
[]
[]
[]
[]
[]
[]
[]
[]
[]
[]
[]
[]
[]
[]
[]
[]
[]
[]
[]
[]
[]
[]
[]
[]
[]
[]
[]
[]
[]
[]
[]
[]
[]
[]
[]
[]
[]
[]
[]
["■大量注文",{"$f":"HYPERLINK(\"#A\"&ROW($A$46),\"戻る\")","v":"戻る"}]
[]
[]
[]
[]
[]
[]
[]
[]
[]
[]
[]
[]
[]
[]
[]
[]
[]
[]
[]
[]
[]
[]
[]
[]
[]
[]
[]
[]
[]
[]
[]
[]
[]
[]
[]
[]
[]
[]
[]
[]
[]
[]
[]
[]
[]
[]
[]
[]
[]
[]
["■製品画像",{"$f":"HYPERLINK(\"#A\"&ROW($A$46),\"戻る\")","v":"戻る"}]
[]
[]
[]
[]
[]
[]
[]
[]
[]
[]
[]
[]
[]
[]
[]
[]
[]
[]
[]
[]
[]
[]
[]
[]
[]
[]
[]
[]
[]
[]
[]
[]
[]
[]
[]
[]
[]
[]
[]
[]
[]
[]
[]
[]
[]
[]
[]
[]
[]
[]
[]
[]
[]
[]
[]
[]
[]
[]
[]
[]
[]
["■契約条件",{"$f":"HYPERLINK(\"#A\"&ROW($A$46),\"戻る\")","v":"戻る"}]
[]
[]
[]
[]
[]
[]
[]
[]
[]
[]
[]
[]
[]
[]
[]
[]
[]
[]
[]
[]
[]
[]
[]
[]
[]
[]
[]
[]
[]
[]
[]
[]
[]
[]
[]
[]
[]
[]
[]
[]
[]
[]
[]
[]
[]
[]
[]
[]
[]
[]
[]
[]
[]
[]
[]
[]
[]
[]
[]
[]
[]
["■依存関係",{"$f":"HYPERLINK(\"#A\"&ROW($A$46),\"戻る\")","v":"戻る"}]
[]
[]
[]
[]
[]
[]
[]
[]
[]
[]
[]
[]
[]
[]
[]
[]
[]
[]
[]
[]
[]
[]
[]
[]
[]
[]
[]
[]
[]
[]
[]
[]
[]
[]
[]
[]
[]
[]
[]
[]
[]
[]
[]
[]
[]
[]
[]
["■商品属性キー情報"]
["■設定値"]
["■商品属性適用開始日"]
["■商品属性適用終了日",{"$f":"HYPERLINK(\"#A\"&ROW($A$46),\"戻る\")","v":"戻る"}]
[]
[]
[]
[]
[]
[]
[]
[]
[]
[]
[]
[]
[]
[]
[]
[]
[]
[]
[]
[]
[]
[]
[]
[]
[]
[]
[]
[]
[]
[]
[]
[]
[]
[]
[]
[]
["■商品内でのリソースグループ表示名"]
["■商品内でのリソースグループキー情報"]
["■商品に含めるリソースグループ"]
["■料金分類"]
["■リソースグループ適用開始日"]
["■リソースグループ適用終了日",{"$f":"HYPERLINK(\"#A\"&ROW($A$46),\"戻る\")","v":"戻る"}]
[]
[]
[]
[]
[]
[]
[]
[]
[]
[]
[]
[]
[]
[]
[]
[]
[]
[]
[]
[]
[]
[]
[]
[]
[]
[]
[]
[]
[]
[]
[]
[]
[]
[]
[]
[]
[]
[]
[]
[]
[]
[]
[]
[]
[]
[]
[]
[]
[]
["■リソースグループ表示順"]
["■この機能の必須・任意"]
["■初期表示"]
["■サービス提供後に項目の追加・削除可否",{"$f":"HYPERLINK(\"#A\"&ROW($A$46),\"戻る\")","v":"戻る"}]
[]
[]
[]
[]
[]
[]
[]
[]
[]
[]
[]
[]
[]
[]
[]
[]
[]
[]
[]
[]
[]
[]
[]
[]
[]
[]
[]
[]
[]
[]
[]
[]
[]
[]
[]
[]
[]
[]
[]
[]
[]
[]
[]
[]
[]
[]
[]
[]
["■複数の設定が可能"]
["■下限"]
["■上限",{"$f":"HYPERLINK(\"#A\"&ROW($A$46),\"戻る\")","v":"戻る"}]

{"sheet":"【リソースグループシート】説明","index":2,"n_rows":102,"n_cols":4,"rows_kept":102,"cut":false,"hidden":false,"merged":[]}
["リソースグループはInfonovaからダウンロードできるリソースグループ設定用の専用シートにて操作を行う"]
[]
["リソースは単体では商品に含めることはできずリソースグループに含めてから商品に含める必要がある"]
[]
["■リソースグループ設定シートのダウンロード"]
[]
[]
[]
[]
[]
[]
[]
[]
[]
[]
[]
[]
[]
[]
[]
[]
[]
[]
[]
[]
["■リソースグループ設定シートのアップロード"]
[]
[]
[]
[]
[]
[]
[]
[]
[]
[]
[]
[]
[]
[]
[]
[]
[]
[]
[]
[]
["■設定補助シート"]
[]
[]
[]
[]
[]
[]
[]
[]
[]
[]
[]
[]
[]
[]
[]
[]
[]
[]
[]
[]
[]
["■説明"]
["ヘッダー名（UIで表示されるモノは参考リンクあり）","概要","設定値","備考"]
[{"$f":"HYPERLINK(\"#A\"&ROW($A$87),SUBSTITUTE($A82,\"■\",\"\"))","v":"テナントキー情報"},"このリソースグループを使用するテナントのキー情報","テナントキー","例）「TENANT」"]
[{"$f":"HYPERLINK(\"#A\"&ROW($A$102),SUBSTITUTE($A100,\"■\",\"\"))","v":"リソースグループキー情報"},"リソースグループを指すキー情報","半角英数字とハイフンとアンダーバー","例）「SUPPLEMENTARY_RESOURCE_GROUP_A」\nこのキー情報はリソースグループのアップロードから\n商品にリソースグループを含める操作まで使用するキー情報であり、\n商品に含めた後は新たにキー情報を設定する必要がある\n新たなキー情報は設定シートに記入する"]
[{"$f":"HYPERLINK(\"#A\"&ROW($A$102),SUBSTITUTE($A101,\"■\",\"\"))","v":"リソースグループ表示名"},"UIで表示されるリソースグループの名称","文字、数字、記号","例）「補足資料用リソースグループA」\nこの表示名はリソースグループのアップロードから\n商品にリソースグループを含める操作まで使用する表示名であり、\n商品に含めた後は新たに表示名を設定する必要がある\n新たな表示名は設定シートに記入する"]
["リソースグループ説明","リソースグループの説明","文字、数字、記号","例）「補足資料用」"]
[{"$f":"HYPERLINK(\"#A\"&ROW($A$87),SUBSTITUTE($A83,\"■\",\"\"))","v":"表示順"},"リソースの表示順","数字","例）「1」"]
[{"$f":"HYPERLINK(\"#A\"&ROW($A$87),SUBSTITUTE($A84,\"■\",\"\"))","v":"リソースキー情報"},"リソースを指すキー情報","文字、数字、記号","例）「A_MOBILE_1」\nリソース設定補助シート（122_リソース情報）にて\n記入したキー情報を記入する"]
["卸テナントキー情報","サプライヤ側のテナントのキー情報","卸テナントのテナントキー"]
["卸商品キー情報","リソースを含む卸商品のキー情報","卸商品の商品キー"]
["初期表示","注文画面での初期表示","あり：初期表示あり\nなし：初期表示なし","例）「なし」\n初期表示を「あり」にする場合は設定シートのリソースグループ設定の\n初期表示も「あり」にする必要がある"]
[]
[]
["■テナントキー情報"]
["■表示順"]
["■リソースキー情報"]
["■卸テナントキー情報"]
["■卸商品キー情報"]
["■初期表示",{"$f":"HYPERLINK(\"#A\"&ROW($A$71),\"戻る\")","v":"戻る"}]
[]
[]
[]
[]
[]
[]
[]
[]
[]
[]
[]
[]
["■リソースグループキー情報"]
["■リソースグループ表示名"]
["■リソースグループ説明",{"$f":"HYPERLINK(\"#A\"&ROW($A$71),\"戻る\")","v":"戻る"}]

{"sheet":"【リソース料金シート】説明","index":3,"n_rows":146,"n_cols":4,"rows_kept":146,"cut":false,"hidden":false,"merged":[]}
["リソース料金はInfonovaからダウンロードできるリソース料金設定用の専用シートにて操作を行う"]
[]
["リソースの料金は事前にアップロードした料金分類をリソースグループに適用し、"]
["そのリソースグループの中に該当するリソースがあれば料金が設定される"]
["リソースグループに適用できる料金分類は1グループにつき1分類だが、"]
["1つの商品に同一のリソースグループを複数含めることができ、"]
["それぞれに異なる料金分類を適用することは可能"]
["サンプルではそれを利用し同一のリソースでも1台購入と2台購入で別の料金が適用される場合を想定している"]
[]
[]
[]
["■リソース料金設定シートのダウンロード"]
[]
[]
[]
[]
[]
[]
[]
[]
[]
[]
[]
[]
[]
[]
[]
[]
[]
[]
[]
[]
["■リソース料金設定シートのアップロード"]
[]
[]
[]
[]
[]
[]
[]
[]
[]
[]
[]
[]
[]
[]
[]
[]
[]
[]
[]
[]
["■設定補助シート"]
[]
[]
[]
[]
[]
[]
[]
[]
[]
[]
[]
[]
[]
[]
[]
[]
[]
[]
[]
[]
[]
["■説明"]
["ヘッダー名（UIで表示されるモノは参考リンクあり）","概要","設定値","備考"]
[{"$f":"HYPERLINK(\"#A\"&ROW($A$95),SUBSTITUTE($A91,\"■\",\"\"))","v":"テナントキー情報"},"このリソース料金を使用するテナントのキー情報","テナントキー","例）「TENANT」"]
[{"$f":"HYPERLINK(\"#A\"&ROW($A$95),SUBSTITUTE($A92,\"■\",\"\"))","v":"リソースキー情報"},"UI上で表示されるリソースを指すキー情報","半角英数字とハイフンとアンダーバー","例）「A_MOBILE_1」\nリソース設定補助シート（122_リソース情報）にて\n記入したキー情報を記入する"]
[{"$f":"HYPERLINK(\"#A\"&ROW($A$95),SUBSTITUTE($A93,\"■\",\"\"))","v":"卸テナントキー情報"},"サプライヤ側のテナントのキー情報","卸テナントのテナントキー"]
[{"$f":"HYPERLINK(\"#A\"&ROW($A$95),SUBSTITUTE($A94,\"■\",\"\"))","v":"卸商品キー情報"},"リソースを含む卸商品のキー情報","卸商品の商品キー"]
[{"$f":"HYPERLINK(\"#A\"&ROW($A$129),SUBSTITUTE($A126,\"■\",\"\"))","v":"請求書内訳名"},"請求書に記載される内訳名","文字、数字、記号","例）「モバイル本体料金」"]
[{"$f":"HYPERLINK(\"#A\"&ROW($A$129),SUBSTITUTE($A127,\"■\",\"\"))","v":"税種別"},"料金に適用される税の種別","テナントに設定されているものから選択","例）「Y」\nテナントに事前設定が必要"]
["商品コード","商品コード","半角英数字とハイフンとアンダーバー","例）「PRO_CODE」"]
["GLコード","勘定科目コード","半角英数字とハイフンとアンダーバー","例）「GL_CODE」"]
[{"$f":"HYPERLINK(\"#A\"&ROW($A$146),SUBSTITUTE($A145,\"■\",\"\"))","v":"料金分類キー情報"},"料金分類のキー情報","半角英数字とハイフンとアンダーバー","商品作成時にリソースグループを商品に含める際に、\nリソースグループに適用する料金を識別するキー情報"]
[{"$f":"HYPERLINK(\"#A\"&ROW($A$146),SUBSTITUTE($A146,\"■\",\"\"))","v":"料金分類説明"},"料金分類の説明","文字、数字、記号","例）「1台購入時の金額」"]
[{"$f":"HYPERLINK(\"#A\"&ROW($A$95),SUBSTITUTE($A95,\"■\",\"\"))","v":"料金分類ｎでの料金"},"各料金分類で適用されるリソースの料金","数字","例）「50,000」"]
[]
[]
["■テナントキー情報"]
["■リソースキー情報"]
["■卸テナントキー情報"]
["■卸商品キー情報"]
["■料金分類ｎでの料金",{"$f":"HYPERLINK(\"#A\"&ROW($A$76),\"戻る\")","v":"戻る"}]
[]
[]
[]
[]
[]
[]
[]
[]
[]
[]
[]
[]
[]
[]
[]
[]
[]
[]
[]
[]
[]
[]
[]
[]
[]
[]
[]
[]
[]
[]
["■請求書内訳名"]
["■税種別"]
["■商品コード"]
["■GLコード",{"$f":"HYPERLINK(\"#A\"&ROW($A$76),\"戻る\")","v":"戻る"}]
[]
[]
[]
[]
[]
[]
[]
[]
[]
[]
[]
[]
[]
[]
[]
["■料金分類キー情報"]
["■料金分類説明",{"$f":"HYPERLINK(\"#A\"&ROW($A$76),\"戻る\")","v":"戻る"}]